Workbook

Sheet Sheet1
A4: INSTRUCTIONS: Use this form when a single information collection document involves multiple reporting and recordkeeping requirements. The totals of the figures in cols. (D), (F), (H), (I), & (K) should be entered in items 17 & 18 of OMB 83-1. For cols. (E), (F), & (J), the averages of the totals shall be computed, as follows, and then entered on the OMB 83-1. (F) Total/Total = (E) Average (H) Total/(F) Total = (G) Average (K) Total/(I) Total = (J) Average NOTE: The columns will calculate automatically. If Col. E's response is something other than annually, i.e., 1/6 years, list as "1/6" & decimal will display. | I4: TITLE OF INFORMATION COLLECTION DOCUMENT | N4: OMB NO.
I6: Tart Cherries Grown in the States of Michigan, New York, Pennsylvania, Oregon, Utah, Washington, and Wisconsin, Marketing Order No. 930 | N6: 0581-0177
N9: DATE PREPARED
N11: 2016-06-30
A13: IDENTIFICATION OF REPORTING OR RECORDKEEPING REQUIREMENT | H13: ANNUAL BURDEN
H15: REPORTS | M15: RECORDS
O17: TOTAL
G18: FORMS NO (S) | H18: NO. OF | I18: NO OF | J18: TOTAL ANNUAL | K18: HOURS | L18: TOTAL | M18: NO. OF | N18: ANNUAL | O18: RECORD-
A19: SECTION OF | B19: DESCRIPTION | G19: (If "none" | H19: RESPONDENTS | I19: RESPONSES | J19: RESPONSES | K19: PER | L19: HOURS | M19: RECORD- | N19: HOURS PER | O19: KEEPING HOURS
A20: REGS. | G20: so state) | I20: PER | J20: (Col. D x E) | K20: RESPONSE | L20: (Col. F x G) | M20: KEEPERS | N20: RECORD- | O20: (Col. I x J)
I21: RESPONDENT | N21: KEEPER
A22: (A) | B22: (B) | G22: (C) | H22: (D) | I22: (E) | J22: (F) | K22: (G) | L22: (H) | M22: (I) | N22: (J) | O22: (K)
A23: 900.14 930.83 | B23: Producers Referendum Ballot (Amendment and Termination) | G23: SC-43 | H23: 600 | I23: 0.1667 | J23: =SUM(H23*I23) -> 100.00 | K23: 0.3300 | L23: =SUM(J23*K23) -> 33.00 | O23: =SUM(M23*N23) -> 0.00
A24: 900.14 930.83 | B24: Cooperative Association of Producers Referendum Ballot (Amendment and Termination) | G24: SC-43A | H24: 10 | I24: 0.1667 | J24: =SUM(H24*I24) -> 1.67 | K24: 0.3300 | L24: =SUM(J24*K24) -> 0.55 | O24: =SUM(M24*N24) -> 0.00
A25: 900.14 930.83 | B25: Processor's Referendum Ballot (Amendment and Termination) | G25: SC-44 | H25: 40 | I25: 0.1667 | J25: 6.67 | K25: 0.3300 | L25: 2.20 | O25: 0.00
A26: 900.14 | B26: Marketing Agreement | G26: SC-45 | H26: 40 | I26: 0.1667 | J26: 6.67 | K26: 0.1300 | L26: 0.87 | O26: 0.00
A27: 900.14 | B27: Certificate of Resolution | G27: SC-45A | H27: 40 | I27: 0.1667 | J27: 6.67 | K27: 0.0830 | L27: 0.55 | O27: 0.00
A28: 930.26 | B28: Background/Acceptance Statement (Producer and Handler Member/Alternate) | G28: SC-46 | H28: 34 | I28: 0.3333 | J28: 11.33 | K28: 0.0830 | L28: 0.94 | O28: 0.00
A29: 930.26 | B29: Background/Acceptance Statement (Public Member/Alternate) | G29: SC-47 | H29: 2 | I29: 0.3333 | J29: 0.67 | K29: 0.0830 | L29: 0.06 | O29: 0.00
A30: 930.23 | B30: Nomination Petition Forms | G30: SC-48 | H30: 640 | I30: 0.3333 | J30: 213.33 | K30: 0.3300 | L30: 70.40 | O30: 0.00
A31: 930.23 | B31: Nomination Ballot | G31: SC-49 | H31: 640 | I31: 0.3333 | J31: =SUM(H31*I31) -> 213.33 | K31: 0.1670 | L31: =SUM(J31*K31) -> 35.63 | O31: =SUM(M31*N31) -> 0.00
B32: SUBTOTAL | J32: =SUM(J23:J31) -> 560.33 | K32: =AVERAGE(K23:K31) -> 0.2073 | L32: =SUM(L23:L31) -> 144 | M32: =SUM(M23:M30) -> 0.00 | O32: =SUM(O23:O31) -> 0.00
B33: TOTAL OF ALL PAGES | J33: =SUM(J32+J65+J91) -> 3,270.33 | K33: =AVERAGE(K32,K65,K91) -> 0.2224 | L33: =SUM(L32+L65+L91) -> 740.66 | M33: =SUM(M32+M65+M91) -> 0.00 | O33: =SUM(O32+O65+O91) -> 0.00
A34: TOTAL - COLUMNS "F" AND "I" = OMB 831, 13 b; COLUMNS "H" AND "K" = OMB 831, 13c | J34: =SUM(J33+M33) -> 3,270.33 | L34: =SUM(L33+O33) -> 741
A38: INSTRUCTIONS: Use this form when a single information collection document involves multiple reporting and recordkeeping requirements. The totals of the figures in cols. (D), (F), (H), (I), & (K) should be entered in items 17 & 18 of OMB 83-1. For cols. (E), (F), & (J), the averages of the totals shall be computed, as follows, and then entered on the OMB 83-1. (F) Total/Total = (E) Average (H) Total/(F) Total = (G) Average (K) Total/(I) Total = (J) Average NOTE: The columns will calculate automatically. If Col. E's response is something other than annually, i.e., 1/6 years, list as "1/6" & decimal will display. | I38: TITLE OF INFORMATION COLLECTION DOCUMENT | N38: OMB NO.
I40: Tart Cherries Grown in the States of Michigan, New York, Pennsylvania, Oregon, Utah, Washington, and Wisconsin, Marketing Order No. 930 | N40: 0581-0177
N43: DATE PREPARED
N45: 2016-06-30
A47: IDENTIFICATION OF REPORTING OR RECORDKEEPING REQUIREMENT | H47: ANNUAL BURDEN
H49: REPORTS | M49: RECORDS
O51: TOTAL
G52: FORMS NO (S) | H52: NO. OF | I52: NO OF | J52: TOTAL ANNUAL | K52: HOURS | L52: TOTAL | M52: NO. OF | N52: ANNUAL | O52: RECORD-
A53: SECTION OF | B53: DESCRIPTION | G53: (If "none" | H53: RESPONDENTS | I53: RESPONSES | J53: RESPONSES | K53: PER | L53: HOURS | M53: RECORD- | N53: HOURS PER | O53: KEEPING HOURS
A54: REGS. | G54: so state) | I54: PER | J54: (Col. D x E) | K54: RESPONSE | L54: (Col. F x G) | M54: KEEPERS | N54: RECORD- | O54: (Col. I x J)
I55: RESPONDENT | N55: KEEPER
A56: (A) | B56: (B) | G56: (C) | H56: (D) | I56: (E) | J56: (F) | K56: (G) | L56: (H) | M56: (I) | N56: (J) | O56: (K)
A57: 930.70(a) | B57: Weekly Raw Product Report | G57: CIAB 1 | H57: 40 | I57: 14.0000 | J57: =SUM(H57*I57) -> 560.00 | K57: 0.2500 | L57: =SUM(J57*K57) -> 140.00 | O57: =SUM(M57*N57) -> 0.00
A58: 930.70(a) | B58: Cherries Acquired from Producers | G58: CIAB 2 | H58: 40 | I58: 1.0000 | J58: 40.00 | K58: 0.2500 | L58: 10.00 | O58: 0.00
A59: 930.70(a) | B59: Sales/Inventory Report | G59: CIAB 3 | H59: 40 | I59: 4.0000 | J59: =SUM(H59*I59) -> 160.00 | K59: 0.4160 | L59: =SUM(J59*K59) -> 66.56 | O59: =SUM(M59*N59) -> 0.00
A60: 930.70(b) | B60: Report of Export Sales Activity | G60: CIAB 3A | H60: 40 | I60: 1.0000 | J60: =SUM(H60*I60) -> 40.00 | K60: 0.0830 | L60: =SUM(J60*K60) -> 3.32 | O60: =SUM(M60*N60) -> 0.00
A61: 930.70(a) | B61: Handler Reserve Plan and Final Pack Report | G61: CIAB 4 | H61: 40 | I61: 1.0000 | J61: =SUM(H61*I61) -> 40.00 | K61: 0.2500 | L61: =SUM(J61*K61) -> 10.00 | O61: =SUM(M61*N61) -> 0.00
A62: 930.70(a) | B62: Inventory Reserve Summary | G62: CIAB 5A | H62: 40 | I62: 14.0000 | J62: 560.00 | K62: 0.2500 | L62: 140.00 | O62: 0.00
A63: 930.70(b) | B63: Inventory Location Report | G63: CIAB 5B | H63: 40 | I63: 15.0000 | J63: =SUM(H63*I63) -> 600.00 | K63: 0.1660 | L63: =SUM(J63*K63) -> 99.60 | O63: =SUM(M63*N63) -> 0.00
A64: 930.58(c) | B64: Tart Cherry Orchard Map and Grower Diversion Application | G64: CIAB 6 (formerly no form no.) | H64: 600 | I64: 1.0000 | J64: =SUM(H64*I64) -> 600.00 | K64: 0.1660 | L64: =SUM(J64*K64) -> 99.60 | O64: =SUM(M64*N64) -> 0.00
B65: SUBTOTAL | J65: =SUM(J57:J64) -> 2,600.00 | K65: =AVERAGE(K57:K64) -> 0.2289 | L65: =SUM(L57:L64) -> 569 | M65: =SUM(M57:M64) -> 0 | O65: =SUM(O57:O64) -> 0
A69: INSTRUCTIONS: Use this form when a single information collection document involves multiple reporting and recordkeeping requirements. The totals of the figures in cols. (D), (F), (H), (I), & (K) should be entered in items 17 & 18 of OMB 83-1. For cols. (E), (F), & (J), the averages of the totals shall be computed, as follows, and then entered on the OMB 83-1. (F) Total/Total = (E) Average (H) Total/(F) Total = (G) Average (K) Total/(I) Total = (J) Average NOTE: The columns will calculate automatically. If Col. E's response is something other than annually, i.e., 1/6 years, list as "1/6" & decimal will display. | I69: TITLE OF INFORMATION COLLECTION DOCUMENT | N69: OMB NO.
I71: Tart Cherries Grown in the States of Michigan, New York, Pennsylvania, Oregon, Utah, Washington, and Wisconsin, Marketing Order No. 930 | N71: 0581-0177
N74: DATE PREPARED
N76: 2016-06-30
A78: IDENTIFICATION OF REPORTING OR RECORDKEEPING REQUIREMENT | H78: ANNUAL BURDEN
H80: REPORTS | M80: RECORDS
O82: TOTAL
G83: FORMS NO (S) | H83: NO. OF | I83: NO OF | J83: TOTAL ANNUAL | K83: HOURS | L83: TOTAL | M83: NO. OF | N83: ANNUAL | O83: RECORD-
A84: SECTION OF | B84: DESCRIPTION | G84: (If "none" | H84: RESPONDENTS | I84: RESPONSES | J84: RESPONSES | K84: PER | L84: HOURS | M84: RECORD- | N84: HOURS PER | O84: KEEPING HOURS
A85: REGS. | G85: so state) | I85: PER | J85: (Col. D x E) | K85: RESPONSE | L85: (Col. F x G) | M85: KEEPERS | N85: RECORD- | O85: (Col. I x J)
I86: RESPONDENT | N86: KEEPER
A87: (A) | B87: (B) | G87: (C) | H87: (D) | I87: (E) | J87: (F) | K87: (G) | L87: (H) | M87: (I) | N87: (J) | O87: (K)
A88: 930.59, 930.162(c) | B88: New Market Application for Handlers | G88: CIAB 7 | H88: 40 | I88: 1.0000 | J88: =SUM(H88*I88) -> 40.00 | K88: 0.3300 | L88: =SUM(J88*K88) -> 13.20 | O88: =SUM(M88*N88) -> 0.00
A89: 930.70(b) | B89: Producer List for Referendum | G89: No form number | H89: 40 | I89: 1.0000 | J89: =SUM(H89*I89) -> 40.00 | K89: 0.3300 | L89: =SUM(J89*K89) -> 13.20 | O89: =SUM(M89*N89) -> 0.00
A90: 930.70(b) | B90: Memorandum of Agreement between Handlers Regarding Responsibilities for Tart Cherry Production under the Marketing Order for Red Tart Cherries | G90: No form number | H90: 10 | I90: 3.0000 | J90: =SUM(H90*I90) -> 30.00 | K90: 0.0330 | L90: =SUM(J90*K90) -> 0.99 | O90: =SUM(M90*N90) -> 0.00
B91: SUBTOTAL | J91: =SUM(J88:J90) -> 110.00 | K91: =AVERAGE(K88:K90) -> 0.2310 | L91: =SUM(L88:L90) -> 27.39 | M91: =SUM(M88:M90) -> 0 | O91: =SUM(O88:O90) -> 0.00
